bitfinex/quotes_SOLUSD_20230903
["timestamp","ask_amount","ask_price","bid_price","bid_amount"]
[1693726224450,4.94461036,19.499,19.482,1.29915898]
[1693726224645,4.94461036,19.499,19.481,21.29909229]
[1693726225254,55.94461036,19.499,19.481,21.29909229]
[1693726225452,4.94461036,19.497,19.481,19.79909229]
[1693726226448,12.94561036,19.497,19.481,19.79909229]
[1693726227159,4.94461036,19.497,19.481,19.79909229]
[1693726227460,63.94561036,19.498,19.481,19.79909229]
[1693726227659,4.94461036,19.496,19.482,55.0]
[1693726227866,4.94461036,19.496,19.483,21.29905633]
[1693726228043,4.94461036,19.496,19.483,20.0]
[1693726230451,4.94461036,19.498,19.483,20.0]
[1693726230653,63.94561036,19.498,19.483,20.0]
[1693726230853,55.94461036,19.498,19.483,20.0]
[1693726231754,55.94461036,19.498,19.456,107.38016578]
[1693726231755,37.33,19.49,19.477,15.76078027]
[1693726231954,37.33,19.49,19.478,55.0]
[1693726232150,4.94461036,19.489,19.478,55.0]
[1693726232468,37.33,19.49,19.478,55.0]
[1693726232667,4.94461036,19.489,19.478,55.0]
[1693726236374,51.0,19.494,19.478,55.0]
[1693726236573,24.94461036,19.493,19.478,55.0]
[1693726237557,4.94461036,19.493,19.478,55.0]
[1693726237772,24.94461036,19.493,19.478,55.0]
[1693726238875,4.94461036,19.493,19.478,55.0]
[1693726239072,24.94461036,19.493,19.478,55.0]
[1693726239455,4.94461036,19.493,19.48,37.33]
[1693726239661,4.94461036,19.496,19.481,75.0]
[1693726241763,4.94461036,19.498,19.481,75.0]
[1693726242275,55.94461036,19.499,19.481,75.0]
[1693726242463,106.0,19.498,19.481,75.0]
[1693726242659,4.94461036,19.497,19.481,75.0]
[1693726243582,4.94461036,19.498,19.481,75.0]
[1693726257379,55.0,19.497,19.481,75.0]
[1693726257585,4.94461036,19.496,19.481,20.0]
[1693726258974,4.94461036,19.496,19.482,55.0]
[1693726259173,4.94461036,19.496,19.483,20.0]
[1693726259688,37.33,19.49,19.473,41.1868583]
[1693726259874,4.94461036,19.489,19.47,76.37155908]
[1693726260676,4.94461036,19.489,19.47,91.41311884]
[1693726260871,4.94461036,19.489,19.471,20.0]
[1693726262392,4.94461036,19.489,19.472,55.0]
[1693726262777,4.94461036,19.489,19.473,20.0]
[1693726262979,4.94461036,19.489,19.474,55.0]
[1693726267105,4.94461036,19.489,19.474,54.5]
[1693726268210,4.94461036,19.489,19.473,20.0]
[1693726268409,55.0,19.488,19.471,20.0]
[1693726268596,4.94461036,19.487,19.471,20.0]
[1693726269813,4.94461036,19.487,19.472,55.0]
[1693726270106,4.94461036,19.487,19.473,20.0]
[1693726276219,31.75856595,19.487,19.473,20.0]
[1693726277909,31.48724335,19.487,19.473,20.0]
[1693726281431,72.10768504,19.487,19.473,20.0]
[1693726282622,123.10768504,19.487,19.473,20.0]
[1693726284630,96.29372945,19.487,19.473,20.0]
[1693726286730,4.67328776,19.487,19.473,20.0]
[1693726286935,4.67328776,19.488,19.474,55.0]
[1693726290935,51.0,19.487,19.474,55.0]
[1693726291120,4.67328776,19.486,19.474,55.0]
[1693726297840,4.67328776,19.488,19.474,55.0]
[1693726298423,4.67328776,19.489,19.474,55.0]
[1693726309224,4.67328776,19.492,19.48,37.33]
[1693726309428,4.67328776,19.498,19.481,55.0]
[1693726309650,26.80760925,19.496,19.481,55.0]
[1693726309944,24.67328776,19.495,19.481,55.0]
[1693726310247,75.67328776,19.495,19.481,55.0]
[1693726316245,24.67328776,19.495,19.481,55.0]
[1693726316433,4.67328776,19.495,19.481,55.0]
[1693726316632,51.0,19.497,19.481,55.0]
[1693726316633,24.67328776,19.496,19.481,55.0]
[1693726317841,4.67328776,19.496,19.481,55.0]
[1693726328839,4.67328776,19.496,19.48,37.33]
[1693726329039,55.0,19.495,19.48,37.33]
[1693726329250,24.67328776,19.494,19.48,37.33]
[1693726330350,24.67328776,19.494,19.481,55.0]
[1693726336749,4.67328776,19.494,19.481,55.0]
[1693726340350,4.67328776,19.495,19.481,55.0]
[1693726347174,4.67328776,19.495,19.48,37.33]
[1693726347357,55.0,19.494,19.48,37.33]
[1693726347657,4.67328776,19.493,19.48,37.33]
[1693726347983,24.67328776,19.493,19.48,37.33]
[1693726348477,24.67328776,19.493,19.481,55.0]
[1693726348981,4.67328776,19.493,19.481,55.0]
[1693726349171,4.67328776,19.495,19.481,55.0]
[1693726356570,4.67328776,19.497,19.481,55.0]
[1693726359893,4.67328776,19.498,19.482,45.55320632]
[1693726360287,37.33,19.5,19.483,55.0]
[1693726360588,4.67328776,19.499,19.483,80.55320632]
[1693726371783,4.67328776,19.499,19.482,20.0]
[1693726371983,55.0,19.498,19.482,20.0]
[1693726372185,4.67328776,19.497,19.482,20.0]
[1693726372381,4.67328776,19.497,19.483,20.0]
[1693726372585,4.67328776,19.497,19.481,20.0]
[1693726373085,4.67328776,19.497,19.482,55.0]
[1693726373285,4.67328776,19.497,19.483,20.0]
[1693726373478,4.67328776,19.497,19.484,55.0]
[1693726374581,4.67328776,19.499,19.484,55.0]
[1693726382796,24.67328776,19.504,19.49,37.33]
[1693726382991,24.67328776,19.504,19.491,55.0]
[1693726383492,4.67328776,19.502,19.491,55.0]
[1693726383693,4.67328776,19.504,19.491,55.0]
[1693726387893,4.67328776,19.505,19.491,55.0]
[1693726390496,4.67328776,19.506,19.491,55.0]
[1693726399899,4.67328776,19.507,19.491,55.0]
[1693726429351,4.67328776,19.509,19.492,45.55320632]
[1693726429545,15.26782964,19.514,19.493,55.0]
[1693726429745,24.67328776,19.513,19.493,55.0]
[1693726429945,24.67328776,19.513,19.494,51.2284]
[1693726430146,24.67328776,19.513,19.495,55.0]
[1693726430447,4.67328776,19.513,19.495,55.0]
[1693726430649,4.67328776,19.515,19.495,54.5]
[1693726436545,19.715725,19.515,19.495,54.5]
[1693726436847,20.0,19.514,19.495,54.5]
[1693726437049,4.67328776,19.513,19.495,54.5]
[1693726447748,4.67328776,19.513,19.5,37.33]
[1693726447958,4.67328776,19.513,19.501,55.0]
[1693726448154,4.67328776,19.516,19.501,55.0]
[1693726449461,19.715725,19.516,19.501,55.0]
[1693726449943,20.0,19.515,19.501,55.0]
[1693726450147,4.67328776,19.514,19.501,55.0]
[1693726464967,24.67328776,19.514,19.501,55.0]
[1693726465174,4.67328776,19.514,19.501,55.0]
[1693726465361,4.67328776,19.517,19.501,55.0]
[1693726474580,4.67328776,19.518,19.502,20.0]
[1693726474881,4.67328776,19.519,19.503,55.0]
[1693726482096,4.67328776,19.519,19.502,20.0]
[1693726482410,4.67328776,19.517,19.502,20.0]
[1693726482606,19.715725,19.517,19.502,20.0]
[1693726482994,19.715725,19.517,19.501,20.0]
[1693726483811,19.715725,19.517,19.502,55.0]
[1693726484011,19.715725,19.517,19.503,20.0]
[1693726484197,19.715725,19.517,19.504,55.0]
[1693726508533,37.33,19.51,19.49,37.33]
[1693726508836,37.33,19.51,19.493,20.0]
[1693726509136,4.67328776,19.509,19.493,20.0]
[1693726510840,4.67328776,19.509,19.494,55.0]
[1693726511733,4.67328776,19.509,19.49,37.33]
[1693726511938,55.0,19.508,19.491,20.0]
[1693726512134,4.67328776,19.507,19.491,20.0]
[1693726512340,4.67328776,19.509,19.491,20.0]
[1693726513036,4.67328776,19.509,19.492,55.0]
[1693726513237,4.67328776,19.509,19.493,20.0]
[1693726513440,4.67328776,19.509,19.494,55.0]
[1693726524557,12.66928776,19.509,19.494,55.0]
[1693726524757,4.67328776,19.509,19.494,55.0]
[1693726592226,4.67328776,19.509,19.493,20.0]
[1693726592524,4.67328776,19.509,19.492,20.0]
[1693726592918,4.67328776,19.509,19.491,20.0]
[1693726594021,4.67328776,19.509,19.492,55.0]
[1693726594221,4.67328776,19.509,19.493,20.0]
[1693726594420,4.67328776,19.509,19.494,55.0]
[1693726628040,4.67328776,19.509,19.493,20.0]
[1693726628233,4.67328776,19.509,19.491,20.0]
[1693726629538,4.67328776,19.509,19.492,55.0]
[1693726629944,4.67328776,19.509,19.493,20.0]
[1693726630243,4.67328776,19.509,19.494,55.0]
[1693726632338,55.0,19.508,19.494,55.0]
[1693726632533,4.67328776,19.507,19.494,55.0]
[1693726633242,4.67328776,19.507,19.493,20.0]
[1693726633547,4.67328776,19.507,19.49,20.0]
[1693726633848,4.67328776,19.507,19.491,55.0]
[1693726634049,4.67328776,19.507,19.492,20.0]
[1693726634233,4.67328776,19.507,19.493,55.0]
[1693726664386,4.67328776,19.507,19.49,57.33]
[1693726664582,4.67328776,19.507,19.491,55.0]
[1693726664781,4.67328776,19.507,19.492,20.0]
[1693726667876,4.67328776,19.507,19.493,55.0]
[1693726671890,55.0,19.506,19.492,20.0]
[1693726672089,4.67328776,19.505,19.491,20.0]
[1693726672587,4.67328776,19.505,19.49,20.0]
[1693726672786,4.67328776,19.505,19.491,55.0]
[1693726672983,4.67328776,19.505,19.492,20.0]
[1693726678500,4.67328776,19.508,19.493,55.0]
[1693726678892,4.67328776,19.509,19.493,55.0]
[1693726679402,55.0,19.508,19.493,55.0]
[1693726679602,4.67328776,19.507,19.493,55.0]
[1693726711522,4.67328776,19.509,19.493,55.0]
[1693726717124,4.67328776,19.513,19.493,80.55320632]
[1693726718219,4.67328776,19.513,19.494,51.1243]
[1693726718418,4.67328776,19.513,19.495,55.0]
[1693726726738,4.67328776,19.513,19.5,37.33]
[1693726726939,4.67328776,19.518,19.501,75.0]
[1693726727140,4.67328776,19.519,19.501,75.0]
[1693726727951,4.67328776,19.519,19.501,125.1613]
[1693726775184,4.67328776,19.519,19.501,150.71450632]
[1693726775775,4.67328776,19.519,19.501,165.90835246]
[1693726776179,4.67328776,19.519,19.502,25.55320632]
[1693726776385,4.67328776,19.519,19.503,75.0]
[1693726801004,4.67328776,19.519,19.503,131.56073806]
[1693726806809,4.17328776,19.519,19.504,0.7713226]
[1693726850847,4.17328776,19.519,19.504,55.7713226]
[1693726853657,4.17328776,19.519,19.504,0.7713226]
[1693726854036,4.17328776,19.519,19.502,0.7713226]
[1693726854847,4.17328776,19.519,19.502,55.7713226]
[1693726855049,4.17328776,19.519,19.503,20.0]
[1693726855349,4.17328776,19.519,19.502,0.7713226]
[1693726855350,4.17328776,19.519,19.504,55.7713226]
[1693726870967,4.17328776,19.519,19.501,20.0]
[1693726870968,59.17328776,19.519,19.502,0.7713226]
[1693726872156,59.17328776,19.519,19.502,55.7713226]
[1693726872476,4.17328776,19.519,19.503,20.0]
[1693726872673,4.17328776,19.519,19.504,55.7713226]
[1693726887762,4.17328776,19.521,19.504,55.7713226]
[1693726888777,37.33,19.52,19.504,55.7713226]
[1693726889078,4.17328776,19.519,19.504,55.7713226]
[1693726894373,4.17328776,19.519,19.504,0.7713226]
[1693726896171,4.17328776,19.519,19.504,55.7713226]
[1693726901383,4.17328776,19.519,19.51,37.33]
[1693726901568,4.17328776,19.529,19.511,75.7713226]
[1693726912591,4.17328776,19.529,19.511,91.1862816]
[1693726912773,4.17328776,19.529,19.511,133.04693733]
[1693726918680,4.17328776,19.529,19.512,52.5014]
[1693726918978,4.17328776,19.529,19.513,75.7713226]
[1693726932209,4.17328776,19.529,19.513,20.7713226]
[1693726933495,4.17328776,19.529,19.514,55.0]
[1693726933703,4.17328776,19.529,19.515,0.7713226]
[1693726947272,12.16128776,19.529,19.515,0.7713226]
[1693726948022,4.17328776,19.527,19.515,0.7713226]
[1693726949219,4.17328776,19.527,19.515,55.7713226]
[1693726949420,4.17328776,19.527,19.515,55.0]
[1693726949722,4.17328776,19.529,19.516,0.5005411]
[1693726950117,4.17328776,19.527,19.515,55.0]
[1693726950627,4.17328776,19.529,19.515,55.0]
[1693726953631,4.17328776,19.529,19.516,0.50174442]
[1693726953826,4.17328776,19.529,19.515,55.0]
[1693726956334,4.17328776,19.529,19.516,0.71253337]
[1693726956748,95.9092,19.528,19.515,55.0]
[1693726956948,4.17328776,19.527,19.515,55.0]
[1693726957146,4.17328776,19.529,19.515,55.0]
[1693726972160,4.17328776,19.529,19.516,0.7713226]
[1693726972351,4.17328776,19.529,19.515,55.0]
[1693726976062,4.17328776,19.529,19.506,0.50690168]
[1693726976247,4.17328776,19.519,19.506,0.50690168]
[1693726976656,4.17328776,19.519,19.502,15.24590163]
[1693726976843,4.17328776,19.519,19.504,0.7713226]
[1693726977968,4.17328776,19.519,19.504,55.7713226]
[1693727023933,4.17328776,19.519,19.505,20.0]
[1693727024093,4.17328776,19.527,19.51,37.33]
[1693727024404,4.17328776,19.527,19.511,75.7713226]
[1693727024598,4.17328776,19.529,19.511,101.32452892]
[1693727025189,4.17328776,19.529,19.511,155.46132892]
[1693727035708,4.17328776,19.529,19.511,197.33934018]
[1693727037112,4.17328776,19.529,19.511,212.77911465]
[1693727047724,4.17328776,19.529,19.511,187.22590833]
[1693727067643,4.17328776,19.529,19.511,129.9081226]
[1693727081867,59.17328776,19.529,19.511,129.9081226]
[1693727082039,4.17328776,19.529,19.511,129.9081226]
[1693727082242,59.17328776,19.529,19.511,129.9081226]
[1693727083051,59.17328776,19.529,19.511,75.7713226]
[1693727086349,4.17328776,19.529,19.511,75.7713226]
[1693727089055,74.05144367,19.529,19.511,75.7713226]
[1693727097960,19.05144367,19.529,19.511,75.7713226]
[1693727098165,4.17328776,19.529,19.511,75.7713226]
[1693727105276,19.05144367,19.529,19.511,75.7713226]
[1693727107568,4.17328776,19.529,19.511,75.7713226]
[1693727122284,4.17328776,19.529,19.511,20.7713226]
[1693727123589,4.17328776,19.529,19.512,55.0]
[1693727123782,4.17328776,19.529,19.513,20.7713226]
[1693727124081,4.17328776,19.529,19.514,55.0]
[1693727124289,4.17328776,19.529,19.515,0.7713226]
[1693727159705,4.17328776,19.529,19.514,0.7713226]
[1693727161414,4.17328776,19.529,19.514,55.7713226]
[1693727187664,4.17328776,19.529,19.52,37.33]
[1693727188044,37.33,19.54,19.521,75.7713226]
[1693727188045,4.17328776,19.539,19.521,75.7713226]
[1693727188371,4.17328776,19.539,19.521,55.7713226]
[1693727188735,4.17328776,19.539,19.522,20.0]
[1693727188944,4.17328776,19.539,19.523,55.7713226]
[1693727218262,4.17328776,19.539,19.523,96.81177318]
[1693727218463,4.17328776,19.539,19.523,94.31177318]
[1693727224690,4.17328776,19.539,19.523,53.2713226]
[1693727226360,4.17328776,19.539,19.522,20.0]
[1693727227861,4.17328776,19.539,19.523,55.0]
[1693727249122,4.17328776,19.539,19.524,20.0]
[1693727249284,37.33,19.55,19.525,55.0]
[1693727249285,4.39793936,19.545,19.525,55.0]
[1693727249488,26.73436373,19.547,19.526,20.0]
[1693727249687,4.94461036,19.546,19.527,55.0]
[1693727249892,4.94461036,19.546,19.528,20.0]
[1693727250198,4.94461036,19.546,19.529,55.0]
[1693727250497,4.94461036,19.546,19.53,20.0]
[1693727250684,4.94461036,19.546,19.531,55.0]
[1693727250884,4.94461036,19.546,19.532,20.0]
[1693727251095,4.94461036,19.546,19.533,55.0]
[1693727253196,4.94461036,19.549,19.533,55.0]
[1693727256294,26.73291468,19.548,19.533,55.0]
[1693727256795,4.94461036,19.547,19.533,55.0]
[1693727261400,4.94461036,19.549,19.533,55.0]
[1693727268400,4.44461036,19.549,19.534,0.5]
[1693727269385,19.32276627,19.549,19.534,0.5]
[1693727278325,19.32276627,19.549,19.533,55.0]
[1693727278700,19.32276627,19.549,19.534,0.5]
[1693727279408,19.32276627,19.549,19.533,55.0]
[1693727279715,14.87815591,19.548,19.533,55.0]
[1693727279900,4.44461036,19.547,19.534,0.5]
[1693727295717,3.94461036,19.547,19.534,0.5]
[1693727297107,97.02171036,19.547,19.534,0.5]
[1693727315327,97.02171036,19.547,19.533,55.0]
[1693727315529,97.02171036,19.547,19.534,1.0]
[1693727323723,137.55422443,19.547,19.534,1.0]
[1693727328240,97.02171036,19.547,19.534,1.0]
[1693727357288,90.83171036,19.547,19.534,1.0]
[1693727357786,37.33,19.55,19.534,1.0]
[1693727362383,90.6825,19.549,19.534,1.0]
[1693727363693,37.33,19.54,19.533,4.94461036]
[1693727364091,37.33,19.54,19.528,4.94461036]
[1693727364981,37.33,19.54,19.529,55.0]
[1693727365175,37.33,19.54,19.53,4.94461036]
[1693727365400,37.33,19.54,19.531,55.0]
[1693727365591,37.33,19.54,19.532,24.94461036]
[1693727382705,37.33,19.54,19.527,24.94461036]
[1693727382901,37.33,19.54,19.528,55.0]
[1693727383103,37.33,19.54,19.529,24.94461036]
[1693727383298,37.33,19.54,19.53,55.0]
[1693727383503,37.33,19.54,19.531,4.94461036]
[1693727383703,37.33,19.54,19.531,24.94461036]
[1693727401323,37.33,19.54,19.532,4.94461036]
[1693727401520,37.33,19.54,19.532,24.94461036]
[1693727402132,37.33,19.54,19.532,4.94461036]
[1693727407020,26.73718305,19.546,19.533,55.0]
[1693727407340,26.73718305,19.546,19.534,4.94461036]
[1693727415536,41.94063458,19.548,19.534,4.94461036]
[1693727415865,90.6825,19.549,19.534,4.94461036]
[1693727416038,55.0,19.548,19.534,4.94461036]
[1693727418940,26.73647349,19.547,19.534,4.94461036]
[1693727429250,55.0,19.548,19.534,4.94461036]
[1693727432788,26.73608684,19.547,19.534,4.94461036]
[1693727442658,131.00593909,19.549,19.534,4.94461036]
[1693727443651,131.00593909,19.549,19.535,55.0]
[1693727443858,131.00593909,19.549,19.536,4.94461036]
[1693727444451,90.6825,19.549,19.537,55.0]
[1693727444759,90.6825,19.549,19.538,4.94461036]
[1693727446648,90.6825,19.549,19.537,55.0]
[1693727448162,90.6825,19.549,19.538,4.94461036]
[1693727448367,90.6825,19.549,19.537,55.0]
[1693727448544,90.6825,19.549,19.538,4.94461036]
[1693727449369,90.6825,19.549,19.537,55.0]
[1693727452071,90.6825,19.549,19.538,4.94461036]
[1693727452580,90.6825,19.549,19.537,55.0]
[1693727452807,90.6825,19.549,19.538,4.94461036]
[1693727453660,90.6825,19.549,19.537,55.0]
[1693727453851,90.6825,19.549,19.538,4.94461036]
[1693727455479,90.6825,19.549,19.539,55.0]
[1693727463957,37.33,19.55,19.54,4.94461036]
[1693727464157,46.72666299,19.554,19.541,55.0]
[1693727464363,20.0,19.553,19.542,4.94461036]
[1693727464780,20.0,19.553,19.541,55.0]
[1693727465386,26.72666299,19.554,19.542,20.0]
[1693727465557,96.8583,19.556,19.543,59.94461036]
[1693727494789,96.3583,19.556,19.543,59.94461036]
[1693727503098,26.71762592,19.558,19.543,59.94461036]
[1693727503286,450.34610676,19.564,19.543,59.94461036]
[1693727505794,15.72927328,19.562,19.543,59.94461036]
[1693727525637,94.2308,19.561,19.543,59.94461036]
[1693727607688,94.2308,19.561,19.543,4.94461036]
[1693727607905,7.976,19.557,19.542,4.94461036]
[1693727608075,37.33,19.55,19.534,4.94461036]
[1693727609281,2.90567399,19.549,19.532,1.94461036]
[1693727609477,2.90567399,19.549,19.532,21.94461036]
[1693727609698,101.76017399,19.549,19.532,21.94461036]
[1693727609901,2.90567399,19.549,19.532,21.94461036]
[1693727611381,2.90567399,19.549,19.534,1.94461036]
[1693727611587,2.90567399,19.549,19.533,1.94461036]
[1693727612392,90.2275,19.548,19.533,1.94461036]
[1693727612692,2.90567399,19.547,19.533,1.94461036]
[1693727612889,2.90567399,19.547,19.533,56.94461036]
[1693727613584,2.90567399,19.549,19.533,56.94461036]
[1693727620194,57.90567399,19.549,19.533,56.94461036]
[1693727658824,2.90567399,19.549,19.533,56.94461036]
[1693727674045,2.90567399,19.549,19.533,1.94461036]
[1693727702870,2.90567399,19.549,19.533,27.49781668]
[1693727703067,2.90567399,19.549,19.534,80.55320632]
[1693727703276,2.90567399,19.549,19.535,1.94461036]
[1693727703581,2.90567399,19.549,19.536,25.55320632]
[1693727703775,95.7298,19.559,19.536,25.55320632]
[1693727703776,3.0,19.556,19.54,37.33]
[1693727704083,3.0,19.556,19.536,25.55320632]
[1693727704084,23.0,19.556,19.541,56.94461036]
[1693727719991,3.0,19.558,19.541,56.94461036]
[1693727720195,3.0,19.559,19.543,1.94461036]
[1693727720395,3.0,19.559,19.543,56.94461036]
[1693727735715,3.0,19.559,19.543,72.4927168]
[1693727749629,3.0,19.559,19.543,17.4927168]
[1693727750933,3.0,19.559,19.544,55.0]
[1693727751137,3.0,19.559,19.545,1.94461036]
[1693727753431,3.0,19.559,19.542,20.0]
[1693727753432,3.0,19.559,19.542,1.94461036]
[1693727753821,3.0,19.559,19.54,1.94461036]
[1693727754236,3.0,19.559,19.539,1.94461036]
[1693727754622,3.0,19.559,19.539,56.94461036]
[1693727754812,3.0,19.559,19.541,1.94461036]
[1693727755018,3.0,19.559,19.541,56.94461036]
[1693727755219,3.0,19.559,19.543,1.94461036]
[1693727755527,3.0,19.559,19.543,56.94461036]
[1693727757827,3.0,19.559,19.543,1.94461036]
[1693727758021,108.07256713,19.559,19.543,1.94461036]
[1693727758222,42.09656713,19.558,19.543,1.94461036]
[1693727758430,58.0,19.557,19.539,1.94461036]
[1693727758931,58.0,19.557,19.538,1.94461036]
[1693727759528,58.0,19.557,19.538,56.94461036]
[1693727759736,58.0,19.557,19.539,20.0]
[1693727759931,58.0,19.557,19.54,56.94461036]
[1693727760131,58.0,19.557,19.541,20.0]
[1693727760436,58.0,19.557,19.542,56.94461036]
[1693727763334,58.0,19.557,19.542,1.94461036]
[1693727763843,58.0,19.557,19.538,1.94461036]
[1693727764047,58.0,19.557,19.538,56.94461036]
[1693727764342,58.0,19.557,19.539,20.0]
[1693727764541,58.0,19.557,19.54,56.94461036]
[1693727764743,58.0,19.557,19.541,20.0]
[1693727764946,58.0,19.557,19.542,1.94461036]
[1693727766546,37.33,19.55,19.542,1.94461036]
[1693727766846,3.0,19.549,19.537,1.94461036]
[1693727767146,3.0,19.549,19.537,56.94461036]
[1693727788386,3.0,19.549,19.537,1.94461036]
[1693727895367,17.04695922,19.549,19.533,15.172043]
[1693727895567,17.04695922,19.549,19.534,1.94461036]
[1693727897665,17.04695922,19.549,19.534,56.94461036]
[1693727917783,37.33,19.54,19.534,1.94461036]
[1693727918084,3.0,19.539,19.522,1.94461036]
[1693727919092,3.0,19.539,19.522,21.94461036]
[1693727920900,3.0,19.539,19.524,1.94461036]
[1693727922300,37.33,19.54,19.524,1.94461036]
[1693727922483,3.0,19.539,19.524,1.94461036]
[1693727924701,37.33,19.54,19.524,1.94461036]
[1693727925203,3.0,19.539,19.524,1.94461036]
[1693727935314,92.137,19.538,19.522,21.94461036]
[1693727935537,3.0,19.537,19.522,21.94461036]
[1693727937810,3.0,19.537,19.523,55.0]
[1693727938012,3.0,19.537,19.524,1.94461036]
[1693728008353,3.0,19.537,19.523,1.94461036]
[1693728008866,96.5529,19.537,19.523,1.94461036]
[1693728009057,3.0,19.536,19.523,1.94461036]
[1693728010371,3.0,19.536,19.523,56.94461036]
[1693728010861,3.0,19.539,19.523,56.94461036]
[1693728019377,3.0,19.539,19.523,1.94461036]
[1693728020763,3.0,19.539,19.523,56.94461036]
[1693728029881,58.0,19.539,19.523,56.94461036]
[1693728031883,3.0,19.539,19.523,56.94461036]
[1693728035187,3.0,19.539,19.523,82.49781668]
[1693728035378,3.0,19.542,19.53,37.47]
[1693728035688,93.3731,19.543,19.53,37.47]
[1693728035689,93.3731,19.543,19.531,76.94461036]
[1693728035933,37.47,19.55,19.531,76.94461036]
[1693728036085,94.6624,19.548,19.531,76.94461036]
[1693728036286,3.0,19.547,19.531,76.94461036]
[1693728036799,3.0,19.549,19.531,76.94461036]
[1693728045795,3.0,19.549,19.531,92.13355044]
[1693728050877,3.0,19.549,19.531,117.68675676]
[1693728051186,3.0,19.549,19.532,52.6994]
[1693728051404,3.0,19.549,19.533,56.94461036]
[1693728059105,23.0,19.552,19.533,56.94461036]
[1693728059904,3.0,19.55,19.533,56.94461036]
[1693728060105,3.0,19.552,19.533,56.94461036]
[1693728060341,3.0,19.552,19.533,1.94461036]
[1693728062102,3.0,19.552,19.533,42.42387302]
[1693728062288,3.0,19.552,19.535,1.94461036]
[1693728077711,37.47,19.55,19.535,1.94461036]
[1693728078012,3.0,19.549,19.535,1.94461036]
[1693728079400,3.0,19.549,19.534,1.94461036]
[1693728079602,3.0,19.549,19.532,1.94461036]
[1693728080418,3.0,19.549,19.532,56.94461036]
[1693728080810,3.0,19.549,19.532,1.94461036]
[1693728081031,25.02725346,19.549,19.532,1.94461036]
[1693728081504,3.0,19.547,19.532,1.94461036]
[1693728082313,3.0,19.547,19.532,56.94461036]
[1693728082612,3.0,19.547,19.532,1.94461036]
[1693728083219,3.0,19.548,19.532,1.94461036]
[1693728083710,3.0,19.546,19.532,21.94461036]
[1693728083905,3.0,19.546,19.534,1.94461036]
[1693728084305,10.981,19.546,19.534,1.94461036]
[1693728084508,37.47,19.54,19.526,1.94461036]
[1693728084713,3.0,19.539,19.526,1.94461036]
[1693728084917,37.47,19.54,19.525,1.94461036]
[1693728085706,3.0,19.539,19.523,1.94461036]
[1693728086418,3.0,19.539,19.522,21.94461036]
[1693728086918,3.0,19.539,19.523,55.0]
[1693728087119,3.0,19.539,19.524,1.94461036]
[1693728088606,96.1883,19.538,19.524,1.94461036]
[1693728089712,3.0,19.537,19.524,1.94461036]
[1693728092919,3.0,19.537,19.521,21.94461036]
[1693728093312,3.0,19.539,19.521,21.94461036]
[1693728093520,58.0,19.539,19.521,21.94461036]
[1693728093915,94.2388,19.538,19.522,55.0]
[1693728094113,3.0,19.537,19.523,1.94461036]
[1693728104512,3.0,19.537,19.523,27.49781668]
[1693728104723,94.2388,19.538,19.524,80.55320632]
[1693728104924,94.2388,19.538,19.525,56.94461036]
[1693728105334,3.0,19.537,19.525,56.94461036]
[1693728106031,3.0,19.539,19.525,56.94461036]
[1693728112835,3.0,19.539,19.525,1.94461036]
[1693728113226,95.4406,19.539,19.525,1.94461036]
[1693728114136,95.4406,19.539,19.525,56.94461036]
[1693728114527,3.0,19.539,19.525,56.94461036]
[1693728116743,3.0,19.539,19.525,72.0843953]
[1693728132048,3.0,19.539,19.525,17.0843953]
[1693728133448,3.0,19.539,19.526,55.0]
[1693728133650,3.0,19.539,19.527,1.94461036]
[1693728170760,58.0,19.539,19.522,1.94461036]
[1693728170965,72.06842465,19.539,19.522,1.94461036]
[1693728171180,98.5142,19.538,19.52,1.94461036]